bitfinex-derivatives/quotes_ETHF0:USTF0_20240826
["timestamp","ask_amount","ask_price","bid_price","bid_amount"]
[1724697291269,0.00323283,2699.8,2699.7,3.57808]
[1724697291470,0.00323283,2699.8,2699.7,8.20779]
[1724697292074,0.00323283,2699.8,2699.7,9.6628]
[1724697296267,0.00323283,2699.8,2699.7,14.6628]
[1724697296466,0.00323283,2699.8,2699.7,16.51423]
[1724697296668,0.00323283,2699.8,2699.7,11.51423]
[1724697296870,0.00323283,2699.8,2699.7,14.1335]
[1724697297069,0.00323283,2699.8,2699.7,9.1335]
[1724697297371,0.00323283,2699.8,2699.7,14.1335]
[1724697300365,0.00323283,2699.8,2699.7,8.20779]
[1724697300564,0.00323283,2699.8,2699.7,14.1335]
[1724697300781,0.00323283,2699.8,2699.7,16.51423]
[1724697301076,0.6209,2700.2,2700.1,2.22137]
[1724697301378,0.6305,2700.5,2700.4,1.29566]
[1724697301580,0.6305,2700.5,2700.4,0.37019]
[1724697301969,0.63354872,2700.5,2700.4,0.37019]
[1724697303477,4.33674872,2700.5,2699.9,7.2818]
[1724697303777,4.33674872,2700.5,2700.1,0.37022]
[1724697303778,0.3702,2700.3,2700.1,0.37022]
[1724697303972,13.0041017,2700.5,2700.2,0.37021]
[1724697304174,13.3742817,2700.5,2700.2,0.37021]
[1724697304374,16.7073017,2700.5,2699.9,7.2818]
[1724697304682,0.37024,2700.0,2699.9,4.074]
[1724697305181,4.07424,2700.0,2699.9,4.074]
[1724697305376,4.07424,2700.0,2699.5,6.41816039]
[1724697305377,0.37026,2699.9,2699.5,3.21816039]
[1724697305579,0.6414,2699.8,2699.7,0.37028]
[1724697306082,4.3454,2699.8,2699.7,0.37028]
[1724697306285,4.71567,2699.8,2699.5,3.58846039]
[1724697306485,0.6414,2699.8,2699.6,0.37028]
[1724697306780,0.6414,2699.8,2699.6,0.37029]
[1724697306981,0.6414,2699.8,2699.5,3.21816039]
[1724697307282,1.01167,2699.8,2699.5,3.58847039]
[1724697307474,0.6414,2699.8,2699.5,3.58847039]
[1724697308073,0.6414,2699.8,2699.6,0.3703]
[1724697308272,0.6414,2699.8,2699.5,3.58846039]
[1724697308684,0.6567,2699.7,2699.5,3.58846039]
[1724697308875,0.6555,2699.6,2699.5,3.58846039]
[1724697309983,0.6555,2699.6,2699.5,6.78846039]
[1724697310175,0.6414,2699.8,2699.7,0.37028]
[1724697311082,4.3454,2699.8,2699.5,6.41816039]
[1724697311278,0.37029,2699.7,2699.5,3.21816039]
[1724697311584,4.71568,2699.8,2699.5,3.58847039]
[1724697311784,0.37028,2699.7,2699.5,3.21816039]
[1724697312183,3.704,2699.7,2699.5,3.58847039]
[1724697312384,3.704,2699.7,2699.5,0.01036039]
[1724697312580,13.26675772,2699.6,2699.5,0.00480082]
[1724697312781,0.37031,2699.5,2699.2,0.37035]
[1724697312984,1.62412,2699.5,2699.2,0.37034]
[1724697313179,5.32892,2699.5,2699.2,0.37034]
[1724697313487,4.9586,2699.5,2699.2,0.37035]
[1724697313680,4.9586,2699.5,2699.2,0.00451553]
[1724697313876,4.9586,2699.5,2699.3,0.37033]
[1724697314179,4.9586,2699.5,2699.2,0.37486553]
[1724697314180,5.32892,2699.5,2699.2,0.37486553]
[1724697314782,4.9586,2699.5,2699.2,0.00451553]
[1724697314992,0.37033,2699.4,2699.2,0.00451553]
[1724697315284,5.32892,2699.5,2699.2,0.37486553]
[1724697315486,0.37033,2699.4,2699.2,0.00451553]
[1724697315796,4.9586,2699.5,2699.2,0.37486553]
[1724697315797,5.32891,2699.5,2699.2,0.37486553]
[1724697315982,0.6117,2699.3,2699.2,0.37486553]
[1724697316387,4.3165,2699.3,2699.2,0.37486553]
[1724697317190,4.3165,2699.3,2699.2,0.00451553]
[1724697317888,4.3165,2699.3,2698.6,1.58767]
[1724697317889,3.7048,2699.2,2698.2,3.2078]
[1724697318080,6.4078,2698.9,2698.2,1.60101]
[1724697318284,0.6172,2698.8,2698.7,0.37042]
[1724697318485,10.06402154,2698.8,2698.7,0.37042]
[1724697318988,0.6172,2698.8,2698.7,0.37042]
[1724697319182,0.6172,2698.8,2698.7,0.37408304]
[1724697319585,0.6172,2698.8,2698.7,0.99418304]
[1724697319890,7.2958,2699.2,2699.1,1.29628]
[1724697319891,3.2078,2699.2,2699.1,1.29628]
[1724697320086,3.2078,2699.2,2699.1,4.49628]
[1724697320480,3.2078,2699.2,2699.1,3.57036]
[1724697320681,0.6172,2699.5,2699.2,0.37034]
[1724697320889,0.98751,2699.5,2699.2,0.37034]
[1724697321189,0.6275,2699.4,2699.2,0.37034]
[1724697322282,0.99783,2699.4,2698.9,6.4078]
[1724697322488,0.99783,2699.4,2699.1,0.37036]
[1724697322888,0.6275,2699.4,2699.1,0.37036]
[1724697323195,0.6275,2699.4,2699.2,0.37034]
[1724697323692,0.6275,2699.4,2699.3,0.37034]
[1724697323997,0.6275,2699.4,2698.9,3.2078]
[1724697324491,0.6275,2699.4,2699.2,0.37035]
[1724697324884,0.6275,2699.4,2699.3,0.37034]
[1724697325090,0.6275,2699.4,2699.1,0.37036]
[1724697325487,0.6275,2699.4,2699.2,0.37035]
[1724697325686,0.6275,2699.4,2698.9,3.2078]
[1724697325891,0.6275,2699.4,2698.8,0.3704]
[1724697325892,0.37035,2699.2,2698.8,0.3704]
[1724697326283,9.55110098,2699.3,2698.9,0.37039]
[1724697326492,9.18075098,2699.3,2698.9,0.37039]
[1724697326693,9.18075098,2699.3,2698.8,0.3704]
[1724697326900,0.37036,2699.2,2698.8,0.3704]
[1724697327191,0.37038,2699.0,2698.7,0.00366304]
[1724697327493,12.48511668,2699.1,2698.7,0.37408304]
[1724697327494,1.2917,2698.9,2698.7,0.37408304]
[1724697327891,1.2917,2698.9,2698.7,0.00366304]
[1724697327892,5.3677,2698.9,2698.7,0.00366304]
[1724697328297,9.19972188,2698.8,2698.7,0.00366304]
[1724697328791,13.27573188,2698.8,2698.7,0.00366304]
[1724697329500,12.90532188,2698.8,2698.7,0.00366304]
[1724697330695,13.27572188,2698.8,2698.7,0.00366304]
[1724697331397,18.27572188,2698.8,2698.7,0.00366304]
[1724697331593,19.20174188,2698.8,2698.7,0.00366304]
[1724697331797,0.37043,2698.6,2698.5,0.00555957]
[1724697331996,4.07603,2698.7,2698.5,0.37600957]
[1724697332185,9.43482187,2698.6,2698.5,0.37600957]
[1724697332598,9.43482187,2698.7,2698.6,0.37042]
[1724697332898,0.00279495,2698.7,2698.6,0.37460786]
[1724697333098,3.70839495,2698.7,2698.6,0.37460786]
[1724697333283,12.76410545,2698.7,2698.6,0.37460786]
[1724697333489,9.05850545,2698.7,2698.6,0.37460786]
[1724697333795,0.00279495,2698.7,2698.6,1.30069786]
[1724697334096,0.00279495,2698.7,2698.6,1.91089786]
[1724697334597,3.2078,2699.5,2698.6,13.17698786]
[1724697334901,0.00555957,2699.6,2699.2,3.2]
[1724697335103,0.00555957,2699.6,2699.4,0.37031]
[1724697335401,0.00555957,2699.6,2699.5,0.37031]
[1724697335589,0.00844225,2699.6,2699.5,0.37031]
[1724697335897,9.37904192,2699.6,2699.5,0.37031]
[1724697336200,13.08304192,2699.6,2699.5,0.37031]
[1724697338600,9.37904192,2699.6,2699.5,0.37031]
[1724697340303,0.00844225,2699.6,2699.5,4.49609]
[1724697340503,3.2078,2700.4,2699.6,0.92575]
[1724697340696,3.2078,2700.4,2700.3,0.3702]
[1724697340995,16.2236154,2700.4,2700.3,0.3702]
[1724697341398,16.2280615,2700.4,2700.3,0.3702]
[1724697341600,12.5248615,2700.4,2700.3,0.3702]
[1724697341906,12.5248615,2700.4,2700.3,1.29571]
[1724697341907,3.2122461,2700.4,2700.3,1.29571]
[1724697342991,3.2122461,2700.4,2700.3,0.3702]
[1724697345695,0.0044461,2700.4,2700.3,3.5702]
[1724697345995,0.00555957,2700.6,2700.5,1.29561]
[1724697346198,0.00555957,2700.6,2700.5,4.49561]
[1724697346395,0.00555957,2700.6,2700.5,8.19881]
[1724697346590,0.00555957,2700.6,2700.5,7.27337]
[1724697346811,0.00555957,2700.6,2700.5,8.19881]
[1724697347003,3.2078,2702.0,2700.8,0.92531]
[1724697347305,3.2078,2702.4,2701.9,3.2]
[1724697347512,3.2078,2702.8,2702.3,3.2]
[1724697347798,3.2078,2702.8,2702.4,0.3699]
[1724697348010,9.08362855,2702.7,2702.4,0.00338424]
[1724697348797,9.08362855,2702.7,2702.4,0.37329424]
[1724697348991,9.08362855,2702.7,2702.4,0.00338424]
[1724697349197,9.08362855,2702.7,2702.5,0.3699]
[1724697349593,9.08362855,2702.7,2702.6,0.36988]
[1724697349796,3.21156147,2702.8,2702.7,0.36987]
[1724697350724,3.21156147,2702.8,2702.7,8.32987]
[1724697350900,0.00376147,2702.8,2702.7,8.32987]
[1724697351200,3.2078,2703.2,2703.1,0.36982]
[1724697351505,3.2078,2703.2,2703.0,0.36982]
[1724697351806,3.2078,2703.2,2702.7,4.26]
[1724697352003,3.2078,2703.2,2702.9,0.36984]
[1724697352193,3.58202318,2703.2,2702.7,4.26]
[1724697352391,3.21222318,2703.2,2702.4,4.26338424]
[1724697352693,9.47114818,2703.1,2702.7,0.36987]
[1724697352898,9.47114818,2703.1,2702.4,4.26338424]
[1724697353204,9.10132818,2703.1,2702.8,0.36986]
[1724697353502,9.10132818,2703.1,2702.9,0.36984]
[1724697353902,9.10132818,2703.1,2702.7,4.26]
[1724697354104,9.10132818,2703.1,2702.8,0.36985]
[1724697354312,9.10132818,2703.1,2702.7,4.26]
[1724697354503,9.10132818,2703.1,2702.8,0.36985]
[1724697355516,9.10132818,2703.1,2702.7,4.26]
[1724697355517,0.36998,2702.0,2701.0,0.3701]
[1724697355719,3.2078,2702.5,2700.7,0.674]
[1724697355720,4.26,2701.8,2700.7,0.674]
[1724697356008,9.687689,2701.9,2700.8,4.26]
[1724697356204,9.051789,2701.7,2700.8,4.26]
[1724697356399,0.6359,2701.9,2700.9,0.3701]
[1724697356607,0.00552461,2701.7,2701.1,0.00554908]
[1724697359709,0.37554461,2701.7,2701.1,0.00554908]
[1724697359910,9.44864823,2701.6,2701.1,0.00554908]
[1724697363505,9.81866823,2701.6,2701.1,0.00554908]
[1724697363709,3.2078,2701.2,2701.1,0.00554908]
[1724697363905,3.21162383,2701.2,2701.1,0.00554908]
[1724697366201,0.00552461,2701.7,2701.1,12.96794908]
[1724697366406,0.00552461,2701.7,2701.1,4.26554908]
[1724697366815,0.00552461,2701.7,2701.6,0.37002]
[1724697367115,3.8297,2702.6,2702.0,0.36996]
[1724697367306,3.8297,2702.6,2701.6,4.26]
[1724697367307,3.83451206,2702.6,2702.1,0.36995]
[1724697367514,9.03296959,2702.5,2702.1,0.36995]
[1724697367716,9.03296959,2702.5,2702.2,0.36994]
[1724697367919,3.21261206,2702.6,2702.4,0.3699]
[1724697368118,0.00481206,2702.6,2702.2,4.26]
[1724697368307,0.00481206,2702.6,2702.1,0.36995]
[1724697368617,0.00481206,2702.6,2701.9,7.4678]
[1724697368618,0.37470206,2702.6,2702.0,0.36996]
[1724697368812,0.37470206,2702.6,2701.9,7.83777]
[1724697369014,0.00481206,2702.6,2701.9,7.4678]
[1724697369416,0.00481206,2702.6,2702.3,0.36992]
[1724697370319,0.00481206,2702.6,2702.5,0.3699]
[1724697370525,0.00481206,2702.6,2701.9,0.92494]
[1724697370526,3.2078,2702.4,2701.9,0.36997]
[1724697370711,3.2078,2702.4,2701.2,5.79369]
[1724697370712,7.4678,2702.4,2701.2,4.8685]
[1724697371015,9.23162816,2702.3,2701.2,4.26]
[1724697371219,9.23162816,2702.3,2701.3,0.37005]
[1724697371415,0.92485,2702.2,2701.2,0.37007]
[1724697371810,0.36997,2702.0,2701.1,3.21334908]
[1724697372013,10.38558362,2702.1,2701.1,3.21334908]
[1724697372215,9.37432362,2701.9,2701.1,3.21334908]
[1724697372410,9.74430362,2702.0,2701.4,0.37004]
[1724697372819,0.36998,2702.0,2701.4,0.37004]
[1724697373321,9.28726016,2701.9,2701.2,4.26]
[1724697373714,9.28726016,2702.0,2701.6,0.37001]
[1724697374119,0.6413,2702.1,2701.6,0.37001]
[1724697374414,9.44755003,2702.0,2701.7,0.37]
[1724697374616,9.44755003,2702.0,2701.1,3.84134908]
[1724697374617,3.807,2702.4,2701.8,0.36999]
[1724697374926,0.6603,2702.5,2701.7,7.4678]
[1724697375123,0.6603,2702.5,2702.0,0.36996]
[1724697375319,0.6603,2702.5,2702.2,0.36993]
[1724697375620,0.00481206,2702.6,2702.0,4.26]
[1724697375851,0.00481206,2702.6,2702.2,0.36994]
[1724697376023,0.00481206,2702.6,2702.0,4.26]
[1724697376221,0.00481206,2702.6,2702.4,0.36991]
[1724697376615,0.00481206,2702.6,2702.4,3.7]
[1724697376822,0.00481206,2702.6,2702.4,4.06991]
[1724697377532,0.00481206,2702.6,2702.5,4.0699]
[1724697377722,0.00481206,2702.6,2702.4,0.36991]
[1724697378113,0.00481206,2702.6,2702.5,0.3699]
[1724697378314,0.00481206,2702.6,2702.4,0.36991]
[1724697378518,0.00481206,2702.6,2702.5,0.3699]
[1724697379032,0.00481206,2702.6,2702.5,13.3299]
[1724697379219,0.00481206,2702.6,2702.5,8.9928]
[1724697379414,0.00481206,2702.6,2702.5,13.9928]
[1724697379624,0.00481206,2702.6,2702.5,8.9928]
[1724697379821,0.00481206,2702.6,2702.5,13.9928]
[1724697380821,0.00481206,2702.6,2702.5,8.9928]
[1724697381026,0.00481206,2702.6,2702.5,13.9928]
[1724697381223,0.00481206,2702.6,2702.5,14.91755]
[1724697382626,3.2078,2703.6,2702.8,0.92465]
[1724697382932,3.57756,2703.6,2703.1,0.36981]
[1724697383120,3.2078,2703.6,2703.3,0.36978]
[1724697383324,3.2078,2703.6,2703.5,0.36976]
[1724697383526,3.2113631,2703.6,2703.5,0.37270018]
[1724697384733,3.2113631,2703.6,2703.5,0.00294018]
[1724697384931,3.2113631,2703.6,2703.5,0.37270018]
[1724697385326,3.2113631,2703.6,2703.5,4.07190018]
[1724697386128,0.0035631,2703.6,2703.5,0.00294018]
[1724697386327,0.36983,2703.1,2702.3,0.36992]
[1724697386520,4.26,2703.2,2702.3,0.36993]
[1724697386725,9.30859941,2703.0,2702.3,0.36992]
[1724697387033,9.23233295,2703.1,2702.5,0.37543908]
[1724697387227,4.62978,2703.4,2702.6,0.36988]
[1724697387529,9.23233295,2703.2,2702.8,0.36986]
[1724697387727,9.23233295,2703.3,2702.8,0.36986]
[1724697387930,0.5999,2703.5,2702.6,4.26]
[1724697387931,9.15059706,2703.4,2702.9,0.36983]
[1724697388133,9.15059706,2703.4,2702.8,0.36985]
[1724697388334,9.15059706,2703.4,2702.6,4.8815]
[1724697388335,0.5999,2703.5,2702.6,5.25138]
[1724697388633,13.41059706,2703.4,2702.5,0.00944321]
[1724697388830,0.36985,2702.9,2702.5,0.00944321]
[1724697389029,4.26,2702.9,2702.5,0.00944321]
[1724697389222,3.2078,2702.6,2702.5,0.00944321]
[1724697389827,6.9078,2702.6,2702.5,0.00944321]
[1724697390525,3.2078,2702.6,2702.5,0.00944321]
[1724697392526,3.2078,2702.6,2702.5,0.37934321]
[1724697392732,0.6468,2702.8,2702.6,0.36988]
[1724697392928,6.9078,2702.7,2702.5,0.00944321]
[1724697393130,17.00348516,2702.7,2702.5,0.00944321]
[1724697393327,17.00348516,2702.7,2701.7,0.37]
[1724697393328,0.36993,2702.3,2701.7,0.37]
[1724697393532,4.8829,2702.6,2701.9,0.36997]
[1724697393729,9.06950516,2702.2,2701.7,0.37]
[1724697393921,9.06950516,2702.2,2701.6,3.2078]
[1724697394123,9.42755702,2702.5,2701.6,3.2078]
[1724697394124,0.36992,2702.4,2701.8,0.36998]
[1724697394324,0.36991,2702.5,2701.8,0.37402932]
[1724697394522,9.42755702,2702.3,2701.9,0.36997]
[1724697394726,5.25279,2702.6,2702.0,0.36997]
[1724697394925,9.4516602,2702.4,2702.0,0.36997]
[1724697395129,9.4516602,2702.5,2701.8,0.0095984]
[1724697395323,0.6229,2702.6,2701.8,0.0095984]
[1724697395527,0.99279,2702.6,2701.8,0.0095984]
[1724697395730,9.4516602,2702.5,2701.8,0.0095984]
[1724697396638,3.8641,2702.7,2702.3,0.36992]
[1724697397037,3.8641,2702.7,2702.4,0.36991]
[1724697397639,3.8641,2702.7,2702.3,0.36993]
[1724697398141,3.8641,2702.7,2702.0,0.6298]
[1724697398142,3.8641,2702.7,2702.4,0.36991]
[1724697398439,3.8641,2702.7,2702.3,0.36992]
[1724697398633,3.8641,2702.7,2702.4,0.36991]
[1724697398832,3.8641,2702.7,2702.0,0.6298]
[1724697398833,3.8641,2702.7,2702.3,0.36992]
[1724697399235,3.8641,2702.7,2702.4,0.36991]
[1724697400433,3.8641,2702.7,2702.0,0.6298]
[1724697400434,3.2078,2702.7,2702.0,0.6298]
[1724697400630,3.2078,2702.7,2702.1,0.92489]
[1724697400830,3.2078,2702.7,2702.6,0.36989]
[1724697401031,3.2078,2702.7,2702.5,0.36989]
[1724697401246,3.2078,2702.7,2702.2,0.6533]
[1724697401438,3.2078,2702.7,2702.4,0.3699]
[1724697401636,3.2078,2702.7,2702.5,0.3699]
[1724697401842,3.2078,2702.7,2702.6,0.36989]
[1724697402346,0.00554908,2702.9,2702.8,0.36986]
[1724697403045,0.00554908,2702.9,2702.8,4.06986]
[1724697404044,0.00554908,2702.9,2702.8,9.06986]
[1724697405043,0.00554908,2702.9,2702.8,4.06986]
[1724697406243,0.00554908,2702.9,2702.8,14.25451]
[1724697407543,0.0035631,2703.6,2703.5,0.36976]
[1724697407744,0.0035631,2703.6,2703.4,0.36977]
[1724697408049,0.0035631,2703.6,2703.5,0.36976]
[1724697408248,0.0035631,2703.6,2703.2,35.7]
[1724697408249,0.0035631,2703.6,2703.4,0.36977]
[1724697408440,0.0035631,2703.6,2703.5,0.36976]
[1724697409350,0.0035631,2703.6,2703.1,4.26554908]
[1724697409648,0.0035631,2703.6,2703.2,0.36979]
[1724697409649,0.3733131,2703.6,2703.2,0.36979]
[1724697409843,0.6118,2703.5,2703.2,0.36979]
[1724697410038,0.6118,2703.5,2703.1,0.00554908]
[1724697410246,0.3698,2703.2,2703.1,0.00554908]
[1724697410449,7.4678,2703.3,2703.1,0.00554908]
[1724697410743,7.4678,2703.3,2702.2,4.76644]
[1724697410744,4.26,2702.9,2702.2,0.36993]
[1724697410943,0.36989,2702.6,2701.9,0.6156]
[1724697411138,0.36989,2702.6,2702.1,0.36995]
[1724697411340,9.05055051,2702.5,2702.2,0.36994]
[1724697411748,9.05055051,2702.7,2701.9,0.6156]
[1724697411936,0.00554908,2702.6,2702.5,0.36989]
[1724697412249,9.38710288,2702.6,2702.5,0.36989]
[1724697412648,0.00554908,2702.6,2702.5,4.06989]
[1724697413549,0.00554908,2702.6,2702.5,0.36989]
[1724697417251,0.00554908,2702.6,2702.5,9.99465]
[1724697417850,0.00554908,2702.6,2702.4,0.36991]
[1724697418048,0.00554908,2702.6,2702.1,0.00554908]
[1724697418244,0.00554908,2702.6,2702.5,0.3699]
[1724697418654,0.00554908,2702.6,2702.5,4.0699]
[1724697422248,0.00554908,2702.6,2702.5,10.91942]
[1724697422645,0.00554908,2702.6,2702.5,4.7316]
[1724697423255,0.00554908,2702.6,2702.5,0.3699]
[1724697423454,0.00554908,2702.6,2702.5,4.0699]
[1724697423656,0.00554908,2702.6,2702.5,0.3699]
[1724697424053,0.00554908,2702.6,2702.5,4.0699]
[1724697425355,0.00554908,2702.6,2702.5,4.99466]
[1724697427358,3.70554908,2702.6,2702.3,0.36992]
[1724697427554,0.6082,2702.5,2702.2,0.36994]
[1724697427859,3.2078,2702.4,2702.1,0.00554908]
[1724697428051,0.36994,2702.3,2702.1,0.00554908]
[1724697428252,0.36994,2702.2,2702.1,0.00554908]
[1724697428464,0.36996,2702.1,2701.8,0.00404932]
[1724697428758,0.36995,2702.1,2701.8,0.00404932]
[1724697428961,13.42922163,2702.2,2701.8,0.00404932]
[1724697429349,9.16922163,2702.2,2701.8,0.37403932]
[1724697429656,3.8369,2702.4,2701.8,0.00404932]
[1724697429857,3.8369,2702.4,2702.1,0.36995]
[1724697430052,3.8369,2702.4,2701.8,0.00404932]
[1724697430053,3.8369,2702.4,2702.2,0.36993]
[1724697430257,3.8369,2702.4,2701.8,0.00404932]
[1724697430258,1.2598,2702.5,2702.4,0.36991]
[1724697430458,0.6082,2702.5,2702.4,0.36991]
[1724697431360,0.00554908,2702.6,2702.5,0.3699]
[1724697431862,0.00554908,2702.6,2702.5,4.0699]
[1724697432855,0.00554908,2702.6,2702.5,4.99466]
[1724697435256,0.00554908,2702.6,2702.5,4.0699]
[1724697435658,0.00554908,2702.6,2702.5,0.3699]
[1724697437164,0.00554908,2702.6,2702.4,0.36991]
[1724697437561,0.00554908,2702.6,2702.5,0.3699]
[1724697437867,0.00554908,2702.6,2702.3,0.36992]
[1724697438165,0.00554908,2702.6,2702.2,0.36993]
[1724697438355,0.64914908,2702.6,2702.1,0.6605]
[1724697438756,0.64914908,2702.6,2702.3,0.36992]
[1724697439866,0.64914908,2702.6,2702.1,0.6605]
[1724697439867,0.64914908,2702.6,2702.5,0.3699]
[1724697441166,0.64914908,2702.6,2702.4,0.3699]
[1724697441362,0.64914908,2702.6,2702.5,0.3699]
[1724697442069,0.64914908,2702.6,2702.4,0.36991]
[1724697442366,0.64914908,2702.6,2701.8,35.70404932]
[1724697442367,11.1686,2702.5,2701.8,35.70404932]
[1724697442566,11.1686,2702.5,2701.8,0.00404932]
[1724697442567,7.4678,2702.1,2701.8,0.00404932]
[1724697442760,1.321,2702.0,2701.8,0.00404932]
[1724697442959,1.9421,2702.0,2701.8,0.00404932]
[1724697443160,0.6809,2702.0,2701.9,0.36998]
[1724697444669,3.21334908,2702.6,2701.9,7.9608]
[1724697444863,3.21334908,2702.6,2702.5,0.3699]
[1724697445064,3.21334908,2702.6,2702.0,4.7373]
[1724697445265,3.21334908,2702.6,2702.3,0.36992]
[1724697445569,3.21334908,2702.6,2702.4,0.36991]
[1724697445767,3.21334908,2702.6,2702.5,0.3699]
[1724697446084,3.21334908,2702.6,2702.4,0.36991]
[1724697446370,3.21334908,2702.6,2702.3,0.36992]
[1724697446563,3.21334908,2702.6,2702.0,4.7373]
[1724697446763,3.21334908,2702.6,2702.4,0.36991]
[1724697447171,3.21334908,2702.6,2702.5,0.3699]
[1724697448961,3.21334908,2702.6,2702.4,0.3699]
[1724697449268,3.21334908,2702.6,2702.4,0.36991]
[1724697449776,3.21334908,2702.6,2702.3,0.36992]
[1724697450370,3.21334908,2702.6,2702.2,0.36993]
[1724697450572,3.21334908,2702.6,2702.3,0.36992]
[1724697451171,3.21334908,2702.6,2702.2,0.36993]
[1724697451379,3.21334908,2702.6,2702.0,4.7373]
[1724697451575,3.21334908,2702.6,2702.2,0.36993]
[1724697452078,0.00554908,2702.6,2702.4,0.3699]
[1724697452771,3.70554908,2702.6,2702.4,0.3699]
[1724697453274,0.00554908,2702.6,2702.5,0.3699]
[1724697453673,3.70554908,2702.6,2702.5,0.3699]
[1724697453970,3.70554908,2702.6,2702.0,7.9451]
[1724697453971,3.70554908,2702.6,2702.2,0.36993]
[1724697454176,0.37543908,2702.6,2702.2,0.36993]
[1724697454576,3.2078,2702.3,2701.8,0.00404932]
[1724697454772,1.3064,2702.2,2701.8,0.00404932]
[1724697454978,1.3064,2702.2,2702.1,0.36995]
[1724697455176,1.3064,2702.2,2702.0,0.36996]
[1724697455976,1.3064,2702.2,2701.8,0.00404932]
[1724697456177,0.6549,2702.2,2702.1,0.36995]
[1724697456378,0.6549,2702.2,2701.9,4.26]
[1724697456379,3.85374908,2702.6,2701.9,5.18496]
[1724697456575,3.85374908,2702.6,2702.4,0.36991]
[1724697456882,3.7,2702.5,2702.4,0.36991]
[1724697457280,3.85374908,2702.6,2702.4,0.36991]
[1724697457780,3.85374908,2702.6,2702.5,0.3699]
[1724697458281,7.55374908,2702.6,2702.4,0.36991]
[1724697458483,3.85374908,2702.6,2702.5,0.3699]
[1724697458679,7.55374908,2702.6,2702.5,0.3699]
[1724697460269,7.92363908,2702.6,2702.4,0.3699]
[1724697460473,4.22363908,2702.6,2702.4,0.3699]
[1724697460781,3.7,2702.5,2702.4,0.3699]
[1724697462081,3.7,2702.5,2702.0,0.92491]
[1724697462082,0.36995,2702.2,2702.0,0.36996]
[1724697462486,0.36995,2702.2,2701.8,0.00404932]
[1724697462487,4.70675,2702.1,2701.9,0.36997]
[1724697462677,0.6222,2702.0,2701.9,0.36997]
[1724697463081,4.323,2702.0,2701.8,0.37403932]
[1724697463284,0.6222,2702.0,2701.8,0.37403932]
[1724697464375,0.99217,2702.0,2701.8,0.00404932]
[1724697464580,0.6222,2702.0,2701.8,0.37403932]
[1724697464789,4.69297,2702.0,2701.8,0.00404932]
[1724697464981,4.323,2702.0,2701.8,0.00404932]
[1724697465283,4.323,2702.0,2701.8,0.37403932]
[1724697465587,3.7008,2702.0,2701.9,0.36998]
[1724697465896,0.636,2702.1,2701.9,0.36997]
[1724697466105,0.636,2702.1,2702.0,0.36997]
[1724697466498,4.3368,2702.1,2702.0,0.36997]
[1724697468002,4.3368,2702.1,2701.9,0.36997]
[1724697468406,3.7008,2702.0,2701.9,0.36997]
[1724697469395,3.7008,2702.0,2701.8,0.37402932]
[1724697470098,3.7008,2702.0,2701.9,0.36998]
[1724697470302,3.7008,2702.0,2701.8,0.00404932]
[1724697470499,0.6353,2701.9,2701.8,0.00404932]
[1724697470804,0.6353,2701.9,2701.8,0.37404932]
[1724697471100,0.636,2702.1,2702.0,0.36997]
[1724697471695,0.636,2702.1,2702.0,1.2949]
[1724697471892,0.636,2702.1,2702.0,0.36997]
[1724697472295,0.636,2702.1,2701.8,0.00404932]
[1724697472500,0.636,2702.1,2701.9,0.36997]
[1724697472801,4.3368,2702.1,2701.9,0.36997]
[1724697472993,4.07077,2702.0,2701.8,0.37402932]
[1724697473200,4.3368,2702.1,2701.8,0.00404932]
[1724697473401,0.36997,2702.0,2701.8,0.00404932]
[1724697473904,4.07078,2702.0,2701.8,0.00404932]
[1724697474292,3.7008,2702.0,2701.8,0.00404932]
[1724697474494,0.636,2702.1,2701.9,0.36998]
[1724697474695,0.636,2702.1,2701.9,0.36997]
[1724697475002,4.3368,2702.1,2701.9,0.36997]
[1724697475794,4.3368,2702.1,2702.0,0.36997]
[1724697476005,0.636,2702.1,2702.0,0.36997]
[1724697476302,4.3368,2702.1,2702.0,0.36997]
[1724697478398,4.70676,2702.1,2701.9,0.36998]
[1724697478708,1.00596,2702.1,2701.9,0.36998]
[1724697479008,3.7008,2702.0,2701.9,0.36998]
[1724697479202,3.7008,2702.0,2701.8,0.37403932]
[1724697479397,3.7008,2702.0,2701.9,0.36998]
[1724697479600,3.8438,2702.1,2702.0,0.36997]
[1724697480000,7.5446,2702.1,2702.0,0.36997]
[1724697480204,7.5446,2702.1,2701.9,0.36997]
[1724697480408,3.8438,2702.1,2701.9,0.36997]
[1724697480596,7.5446,2702.1,2701.9,0.36997]
[1724697480799,7.5446,2702.1,2702.0,0.36997]
[1724697481004,3.8438,2702.1,2702.0,0.36997]
[1724697481207,7.5446,2702.1,2702.0,0.36997]
[1724697481404,7.5446,2702.1,2701.9,0.36997]
[1724697481601,3.8438,2702.1,2701.9,0.36997]
[1724697481805,7.91456,2702.1,2701.9,0.36997]
[1724697482005,7.5446,2702.1,2701.9,0.36997]
[1724697482204,7.91456,2702.1,2701.9,0.36997]
[1724697483209,0.36998,2701.9,2701.7,0.00554908]
[1724697483401,3.2,2701.7,2701.2,0.648]
[1724697483600,3.2,2701.7,2701.3,0.37006]
[1724697483601,0.37003,2701.6,2701.3,0.37006]
[1724697483909,9.68306178,2701.6,2701.3,0.37006]
[1724697484307,0.6644,2701.5,2701.3,0.37442168]
[1724697484898,0.6644,2701.5,2701.3,0.00436168]
[1724697485106,1.03444,2701.5,2701.3,0.00436168]
[1724697485404,0.6644,2701.5,2701.3,0.00436168]
[1724697485904,3.7016,2701.4,2701.3,0.00436168]
[1724697486207,4.07165,2701.4,2701.3,0.00436168]
[1724697486710,3.7016,2701.4,2701.3,0.00436168]
[1724697489111,4.07165,2701.4,2701.3,0.00436168]
[1724697492711,3.7016,2701.4,2701.3,0.00436168]
[1724697493404,3.7016,2701.4,2701.3,0.37442168]
[1724697494908,3.7016,2701.4,2701.3,0.00436168]
[1724697495111,3.7016,2701.4,2701.3,0.37442168]
[1724697495498,3.7016,2701.4,2701.3,0.00436168]